Cogmind - Beta 9.3 @@@ ROGUE MODE // 2020.01.04 @ 00:34:48 // Winter2019/RPGLIKE Player: FontPeg Result: Destroyed by B-75 Beast with Magnetic Acceleration Cannon Performance ------------- Evolutions (4) 2000 Regions Visited (5) 1000 Robots Destroyed (47) 235 Value Destroyed (1223) 1223 Prototype IDs (9) 180 Alien Tech Used (0) 0 Bonus (125) 125 TOTAL SCORE: 4763 Bonus ------- High Alert Combat Kills 82 Follower Combat Kills 69 Friendly Fire -26 Cogmind --------- Core Integrity 0/1000 Matter 400/400 Energy 297/300 System Corruption 0% Temperature Cool (15) Movement Flying (29) Location -6/Factory Parts ------- > --- POWER (2) -------- Light Angular Momentum Engine Light Angular Momentum Engine > --- PROPULSION (3) --- Cooled VTOL Module Cooled VTOL Module Cooled VTOL Module > --- UTILITY (5) ------ Improved Signal Interpreter Targeting Computer Weapon Cycler Improved Maneuvering Thrusters Focal Shield > --- WEAPON (2) ------- Cooled Pulse Rifle Cooled Pulse Rifle > --- INVENTORY (4) ---- Improved Cryofiber Web Long-range Tractor Beam Improved Field Recycling Unit (8) Cooled Pulse Rifle Peak State ------------ > --- POWER ------------ Light Angular Momentum Engine Light Angular Momentum Engine > --- PROPULSION ------- Cooled VTOL Module Cooled VTOL Module Cooled VTOL Module > --- UTILITY ---------- Improved Signal Interpreter Targeting Computer Weapon Cycler Improved Maneuvering Thrusters Focal Shield > --- WEAPON ----------- Cooled Pulse Rifle Cooled Pulse Rifle > --- INVENTORY -------- Improved Cryofiber Web Long-range Tractor Beam Improved Field Recycling Unit Cooled Pulse Rifle [Rating: 53] Favorites ----------- Power Light Ion Engine Engine Light Ion Engine Power Core Micro Nuclear Core Propulsion Cooled VTOL Module Treads Light Treads Flight Unit Cooled VTOL Module Utility Targeting Computer Device Long-range Tractor Beam Processor Targeting Computer Protection Light Armor Plating Weapon Particle Cannon Energy Gun Heavy Laser Energy Cannon Particle Cannon Ballistic Gun Assault Rifle Special Weapon Plasma Cutter Build | -11 -10 -9 -8 -7 -6 ------- Run | Scr Mat Mat Mat Fac Fac Slots Evolved 8 | 4 . . . . 4 Power 1 | 1 . . . . . Propulsion 2 | 1 . . . . 1 Utility 4 | 1 . . . . 3 Weapon 1 | 1 . . . . . Parts Attached 53 | 6 2 18 2 11 14 Power 12 | 2 . 5 . 2 3 Engine 11 | 2 . 5 . 1 3 Core 1 | . . . . 1 . Reactor . | . . . . . . Propulsion 7 | 2 . 2 . 2 1 Treads 2 | 2 . . . . . Leg . | . . . . . . Wheel . | . . . . . . Hover . | . . . . . . Flight 5 | . . 2 . 2 1 Utility 17 | . . 6 2 3 6 Device 11 | . . 3 1 2 5 Storage . | . . . . . . Processor 3 | . . 2 . . 1 Hackware . | . . . . . . Protection 3 | . . 1 1 1 . Artifact . | . . . . . . Weapon 17 | 2 2 5 . 4 4 Energy Gun 7 | . . 3 . 2 2 Energy Cannon 6 | . 2 2 . 2 . Ballistic Gun 3 | 2 . . . . 1 Ballistic Cannon . | . . . . . . Launcher . | . . . . . . Special Weapon 1 | . . . . . 1 Impact Weapon . | . . . . . . Slashing Weapon . | . . . . . . Piercing Weapon . | . . . . . . Special Melee Weapon . | . . . . . . Unidentified Prototypes 5 | . . 3 . 1 1 Parts Lost 1 | . . . . . 1 Power . | . . . . . . Propulsion . | . . . . . . Utility . | . . . . . . Weapon 1 | . . . . . 1 Highest Loss Streak 1 | . . . . . 1 Average Slot Usage (%) 92 | . 75 86 100 99 98 Engine 20 | . 25 25 25 19 13 Core 2 | . . . . 5 3 Treads 9 | . 25 18 . . . Flight 16 | . . 6 25 25 25 Device 10 | . . 2 12 11 22 Processor 9 | . . 5 12 12 15 Energy Gun 6 | . . 3 12 12 9 Energy Cannon 13 | . 17 21 12 11 4 Naked Turns . | . . . . . . Heaviest Build 35 | 11 16 24 14 34 35 Greatest Support 46 | 13 13 18 18 35 46 Greatest Overweight (x) 1 | . 1 1 . . . Average Overweight (x) . | . . . . . . Largest Inventory Capacity 4 | 1 1 1 4 4 4 Average Capacity 2 | 1 1 1 3 4 4 Most Carried 4 | 1 1 1 4 4 4 Average Carried 2 | . . . 2 3 3 Final Capacity 4 | 1 1 1 4 4 4 Final Carried 4 | . 1 1 3 4 4 Class Distribution -------------------- 36% | Sprinter 36% | Mutant 26% | Scavenger-Mutant Dominant Class ---------------- Mutant | -10/Materials Mutant | -9/Materials Scavenger-Mutant | -8/Materials Scavenger-Mutant | -7/Factory Sprinter | -6/Factory Resources | -11 -10 -9 -8 -7 -6 ----------- Run | Scr Mat Mat Mat Fac Fac Matter Collected 635 | 260 13 182 . 56 124 Remotely 114 | . . . . . 114 Salvage Created 1184 | . 13 552 91 269 259 Parts 101 | . 3 54 10 17 17 Haulers Intercepted 4 | . . 4 . . . Recyclers Shooed . | . . . . . . Parts Field Recycled 15 | . . . . 14 1 Retrieved Matter 221 | . . . . 203 18 Parts Self-Destructed . | . . . . . . Prevented . | . . . . . . Kills | -11 -10 -9 -8 -7 -6 ------- Run | Scr Mat Mat Mat Fac Fac Combat Hostiles Destroyed 29 | . . 18 . 6 5 Guns 3 | . . . . 1 2 Cannons 20 | . . 15 . 4 1 AOE 4 | . . 3 . . 1 Classes Destroyed 10 | . 1 6 2 1 . Worker 4 | . . 2 . 1 1 Builder 2 | . . . 1 . 1 Tunneler 1 | . . . 1 . . Hauler 4 | . . 4 . . . Recycler 2 | . . 1 1 . . Watcher 5 | . 1 1 1 2 . Swarmer 11 | . . 8 . . 3 Grunt 9 | . . 5 . 4 . Sentry 6 | . . 5 . 1 . Hunter 3 | . . . . 1 2 Best Kill Streak 8 | . 1 8 4 5 3 Combat Bots Only 8 | . . 8 . 3 3 Max Kills in Single Turn 3 | . 1 3 2 1 2 Gunslinging . | . . . . . . Exploded 3 | . . 3 . . 1 Melee . | . . . . . . Uniques/NPCs Destroyed . | . . . . . . Combat | -11 -10 -9 -8 -7 -6 -------- Run | Scr Mat Mat Mat Fac Fac Damage Taken 3375 | . 88 1515 150 660 962 Core 2794 | . 72 1258 138 537 789 Absorbed by Shields . | . . . . . . Redirected to Core 1933 | . 50 843 42 394 604 Core Remaining (%) 66 | 100 92 63 49 27 . Volleys Fired 105 | . 2 51 1 26 25 Largest 2 | . 2 2 2 2 2 Hottest 149 | . 136 136 124 149 149 Shots Fired 181 | . 4 82 2 52 41 Gun 60 | . . 14 1 26 19 Cannon 110 | . 4 68 1 26 11 Launcher . | . . . . . . Special 11 | . . . . . 11 Kinetic . | . . . . . . Thermal 181 | . 4 82 2 52 41 Explosive . | . . . . . . Electromagnetic . | . . . . . . Robot Hit Streak 17 | . . 6 1 17 4 Robot Miss Streak 5 | . 3 4 1 5 3 Penetration Max . | . . . . . . Secondary Targets . | . . . . . . Shots Hit Robots 104 | . . 49 1 38 16 Core Hits 56 | . 1 29 4 14 8 Critical Hits 4 | . . 2 . 2 . Critical Kills 2 | . . 1 . 1 . Critical Parts Destroyed 2 | . . 1 . 1 . Melee Attacks . | . . . . . . Impact . | . . . . . . Slashing . | . . . . . . Piercing . | . . . . . . Sneak Attacks . | . . . . . . Combat Hostiles . | . . . . . . Follow-up Attacks . | . . . . . . Damage Inflicted 2894 | . 20 1153 467 839 415 Guns 797 | . . 165 . 385 247 Cannons 1468 | . 20 838 . 454 156 Explosions 617 | . . 150 467 . . Melee . | . . . . . . Ramming . | . . . . . . Kinetic . | . . . . . . Thermal 2744 | . 20 1003 467 839 415 Explosive . | . . . . . . Electromagnetic 150 | . . 150 . . . Impact . | . . . . . . Slashing . | . . . . . . Piercing . | . . . . . . Highest Corruption 3 | . . 3 . . . Average Corruption 2 | . . 2 . . . Corruption Purged . | . . . . . . Effects 11 | . . 11 . . . Message Errors 2 | . . 2 . . . Matter Fused 2 | . . 2 . . . Energy Discharges 1 | . . 1 . . . Data Loss (minor) 1 | . . 1 . . . Targeting Errors 4 | . . 4 . . . Weapon Failures 1 | . . 1 . . . Overload Shots . | . . . . . . Overflow Damage 152 | . . 36 94 22 . Projectiles 58 | . . 36 . 22 . Explosions 94 | . . . 94 . . Melee . | . . . . . . Knockbacks . | . . . . . . Impact . | . . . . . . Kinetic . | . . . . . . Secondary . | . . . . . . Self-Inflicted Damage 128 | . . 43 85 . . Shots 2 | . . 1 1 . . Rammed . | . . . . . . Targets Rammed . | . . . . . . Kicked . | . . . . . . Crushed . | . . . . . . Highest Temperature 565 | . 186 565 16 376 190 Average Temperature 140 | . 95 166 16 122 58 Received Heat Transfer 618 | . 48 321 27 159 63 Effects 23 | . . 22 . 1 . Shutdowns 5 | . . 4 . 1 . Energy Bleed 2 | . . 2 . . . Interference 7 | . . 7 . . . Matter Decay 1 | . . 1 . . . Short Circuit 2 | . . 2 . . . Damage (minor) 3 | . . 3 . . . Damage (major) 2 | . . 2 . . . Damage (core) 1 | . . 1 . . . Siege Activations . | . . . . . . Robots Corrupted . | . . . . . . Combat Hostiles . | . . . . . . Parts Fried . | . . . . . . Impact Corruptions . | . . . . . . Robots Melted 2 | . . . . 1 1 Combat Hostiles 2 | . . . . 1 1 Parts Melted 5 | . . . . 2 3 Heat Transferred 4791 | . 37 1924 350 1662 818 Parts Sabotaged . | . . . . . . Parts Stolen . | . . . . . . Parts Stripped . | . . . . . . Power Chain Reactions 1 | . . . . . 1 Missiles Intercepted . | . . . . . . Alert | -11 -10 -9 -8 -7 -6 ------- Run | Scr Mat Mat Mat Fac Fac Peak Influence 721 | . 37 561 446 497 721 Average Influence 335 | . 19 279 299 303 527 Maximum Alert Level 3 | . . 2 2 2 3 Low Security (%) 24 | 100 100 40 . . . Level 1 36 | . . 23 88 85 24 Level 2 39 | . . 35 11 14 75 Level 3 . | . . . . . . Level 4 . | . . . . . . Level 5 . | . . . . . . High Security . | . . . . . . Max Security . | . . . . . . Squads Dispatched 14 | . 3 4 . 3 4 Investigation 7 | . . 3 . . 4 Extermination . | . . . . . . Reinforcement 7 | . 3 1 . 3 . Assault . | . . . . . . Garrison . | . . . . . . Intercept . | . . . . . . Construction Impeded 1 | . . . . 1 . Haulers Reinforced . | . . . . . . Stealth | -11 -10 -9 -8 -7 -6 --------- Run | Scr Mat Mat Mat Fac Fac Distress Signals 5 | . 2 3 . . . Communications Jammed . | . . . . . . Distress Signals . | . . . . . . Times Spotted 77 | . 6 35 3 15 18 Peak Tracking Total 11 | . 4 11 4 6 5 Tactical Retreats 4 | . . 1 . 1 2 Traps | -11 -10 -9 -8 -7 -6 ------- Run | Scr Mat Mat Mat Fac Fac Traps Triggered 1 | . . 1 . . . Indirectly . | . . . . . . Trap Hack Attempts . | . . . . . . Triggered . | . . . . . . Disarmed . | . . . . . . Reprogrammed . | . . . . . . Reused . | . . . . . . Traps Extracted . | . . . . . . Installed . | . . . . . . Triggered . | . . . . . . Machines | -11 -10 -9 -8 -7 -6 ---------- Run | Scr Mat Mat Mat Fac Fac Machines Disabled 9 | . . 2 7 . . Max in Single Turn 5 | . . 1 5 . . Garrison Access 1 | . . . . . 1 Machines Sabotaged . | . . . . . . Garrisons Compromised . | . . . . . . Overloaded Fab Kills 1 | . . . . . 1 Fab Network Shutdowns . | . . . . . . Hacking | -11 -10 -9 -8 -7 -6 --------- Run | Scr Mat Mat Mat Fac Fac Machines Accessed 17 | . 1 6 1 3 6 Terminals 11 | . 1 4 1 3 2 Fabricators 1 | . . . . . 1 Repair Stations . | . . . . . . Recycling Units 3 | . . 2 . . 1 Scanalyzers 1 | . . . . . 1 Garrison Access 1 | . . . . . 1 Total Hacks 44 | . 1 16 2 10 15 Successful 20 | . . 5 2 5 8 Failed 24 | . 1 11 . 5 7 Catastrophic 4 | . . 3 . . 1 Database Lockouts . | . . . . . . Manual 38 | . 3 16 2 8 9 Terminals 30 | . 1 11 2 10 6 Fabricators 2 | . . . . . 2 Repair Stations . | . . . . . . Recycling Units 6 | . . 5 . . 1 Scanalyzers 2 | . . . . . 2 Garrison Access 4 | . . . . . 4 Terminal Hacks 3 | . . 1 . 1 1 Prototype ID Bank 2 | . . . . 1 1 Recall Investigation 1 | . . 1 . . . Fabricator Hacks . | . . . . . . Repair Station Hacks . | . . . . . . Recycling Unit Hacks . | . . . . . . Scanalyzer . | . . . . . . Garrison Access Hacks . | . . . . . . Unauthorized Hacks 46 | . 1 16 4 9 16 Terminals 11 | . . 3 2 3 3 Track 1 | . . . . . 1 Assimilate 1 | . . . . 1 . Botnet 8 | . . 3 1 2 2 Detonate 1 | . . . 1 . . Fabricators 1 | . . . . . 1 Overload 1 | . . . . . 1 Repair Stations . | . . . . . . Recycling Units 2 | . . 1 . . 1 Tunnel 2 | . . 1 . . 1 Scanalyzers 1 | . . . . . 1 Extract 1 | . . . . . 1 Garrison Access 1 | . . . . . 1 Jam 1 | . . . . . 1 Data Cores Recovered . | . . . . . . Used . | . . . . . . Hacking Detections 15 | . 1 5 1 3 5 Full Trace Events 3 | . . 3 . . . Feedback Events 1 | . . 1 . . . Corruption 1 | . . 1 . . . Feedback Blocked . | . . . . . . Robot Schematics Acquired . | . . . . . . Robots Built . | . . . . . . Matter . | . . . . . . Time . | . . . . . . Total Robot Build Rating . | . . . . . . Part Schematics Acquired 12 | . . . . . 12 Parts Built . | . . . . . . Matter . | . . . . . . Time . | . . . . . . Total Part Build Rating . | . . . . . . Parts Repaired . | . . . . . . Time . | . . . . . . Parts Recycled . | . . . . . . Recycled Matter . | . . . . . . Retrieved Matter . | . . . . . . Retrieved Components . | . . . . . . Parts Scanalyzed . | . . . . . . Part Schematics Acquired . | . . . . . . Parts Damaged . | . . . . . . Bothacking | -11 -10 -9 -8 -7 -6 ------------ Run | Scr Mat Mat Mat Fac Fac Used RIF Installer . | . . . . . . Robots Hacked . | . . . . . . Non-combat . | . . . . . . Combat . | . . . . . . Robot Hacks Applied . | . . . . . . Relay Couplers Released . | . . . . . . Robots Rewired 1 | . . . . . 1 Allies Hacked . | . . . . . . Hacks Repelled . | . . . . . . Allies | -11 -10 -9 -8 -7 -6 -------- Run | Scr Mat Mat Mat Fac Fac Total Allies 2 | . . . . 1 1 Largest Group 1 | . . . . 1 1 Highest-Rated Group 32 | . . . . 10 32 Highest-Rated Ally 32 | . . . . 10 32 Total Orders 4 | . . . . 4 . GOTO 3 | . . . . 3 . FOLLOW 1 | . . . . 1 . Ally Attacks 5 | . . . . . 5 Total Damage 205 | . . . . . 205 Kills 2 | . . . . . 2 Allies Corrupted . | . . . . . . Allies Melted . | . . . . . . Intel | -11 -10 -9 -8 -7 -6 ------- Run | Scr Mat Mat Mat Fac Fac Robot Analysis Total . | . . . . . . Derelict Logs Recovered . | . . . . . . Drone Launches . | . . . . . . Drone Recoveries . | . . . . . . Exploration | -11 -10 -9 -8 -7 -6 ------------- Run | Scr Mat Mat Mat Fac Fac Turns Passed 1728 | 33 103 697 69 327 499 Spaces Moved 2548 | 44 121 596 163 397 1227 Core 513 | 44 121 348 . . . Treads . | . . . . . . Legs . | . . . . . . Wheels . | . . . . . . Hover . | . . . . . . Flight 2035 | . . 248 163 397 1227 Fastest Speed 20 | 50 50 37 37 32 20 Average Speed 43 | 50 76 74 37 36 28 Slowest Speed 140 | 50 100 140 37 37 32 Overloaded Moves 111 | . . . . . 111 Propulsion Burnouts . | . . . . . . Robots Hopped 14 | . . 2 . 6 6 Cave-ins Triggered . | . . . . . . Exploration Rate (%) 24 | 4 34 49 20 6 33 Regions Visited 5 Branch Regions . Pre-discovered Areas 2 | . . 1 . . 1 Known Exits Taken . | . . . . . . Unknown Exits Taken 5 | 1 1 1 1 1 . Scrap Searched . | . . . . . . Spaces Dug . | . . . . . . Terrain Destroyed 64 | . . . 64 . . Melee . | . . . . . . Projectile . | . . . . . . AOE 64 | . . . 64 . . Actions | -11 -10 -9 -8 -7 -6 --------- Run | Scr Mat Mat Mat Fac Fac Total 2973 | 54 127 765 170 525 1332 Wait 123 | . . 33 . 64 26 Move 2516 | 43 120 591 162 385 1215 Hop 13 | . . 2 . 5 6 Pick Up 28 | 5 1 5 3 6 8 Fast Attach 25 | 1 2 15 . 3 4 Attach 12 | 5 . 1 2 . 4 Detach 1 | . . . 1 . . Swap 16 | . . 2 . 8 6 Drop 42 | . 2 16 1 13 10 Fire 105 | . 2 51 1 26 25 Melee . | . . . . . . Ram . | . . . . . . Kick . | . . . . . . Crush . | . . . . . . Escape Stasis . | . . . . . . Rewire 5 | . . . . . 5 Trap . | . . . . . . Miscellaneous 87 | . . 49 . 15 23 Route ------- -11/Scrapyard -10/Materials (discovered 2 exits: *Mat / [*Min]) -9/Materials -8/Materials -7/Factory -6/Factory History --------- Turn | Location | Event 1 | -11/Scrapyard | Upgraded with Power slot (x1) 1 | -11/Scrapyard | Upgraded with Propulsion slot (x1) 1 | -11/Scrapyard | Upgraded with Utility slot (x1) 1 | -11/Scrapyard | Upgraded with Weapon slot (x1) 5 | -11/Scrapyard | Discovered new exit (range 16) 34 | -11/Scrapyard | Entered Materials 88 | -10/Materials | Discovered new exit (range 13) 131 | -10/Materials | Discovered new exit (range 5) 137 | -10/Materials | Entered another Materials area 139 | -9/Materials | Reached level 2 315 | -9/Materials | Build established: Mutant 533 | -9/Materials | Reached level 3 541 | -9/Materials | Core integrity fell below 50% 564 | -9/Materials | Core integrity fell below 20% 582 | -9/Materials | Destroyed 8 combat bots 832 | -9/Materials | Discovered new exit (range 6) 834 | -9/Materials | Entered another Materials area 836 | -8/Materials | Reached level 4 877 | -8/Materials | Reached level 5 885 | -8/Materials | Discovered new exit (range 16) 888 | -8/Materials | Core integrity fell below 50% 903 | -8/Materials | Entered Factory 904 | -7/Factory | Core integrity fell below 50% 905 | -7/Factory | Reached level 6 961 | -7/Factory | Build established: Scavenger-Mutant 1120 | -7/Factory | Discovered new exit (range 9) 1193 | -7/Factory | Core integrity fell below 20% 1230 | -7/Factory | Entered another Factory area 1231 | -6/Factory | Core integrity fell below 50% 1232 | -6/Factory | Reached level 7 1240 | -6/Factory | Upgraded with Propulsion slot (x1) 1240 | -6/Factory | Upgraded with Utility slot (x1) 1272 | -6/Factory | Reached level 8 1281 | -6/Factory | Upgraded with Utility slot (x1) 1378 | -6/Factory | Reached level 9 1392 | -6/Factory | Build established: Sprinter 1394 | -6/Factory | Upgraded with Utility slot (x1) 1522 | -6/Factory | Core integrity fell below 20% 1711 | -6/Factory | Spotted B-75 Beast 1729 | -6/Factory | Destroyed by B-75 Beast with Magnetic Acceleration Cannon Last Messages --------------- Downloading prototype IDs... Enh. Force Rifle Plasma Sword >>Trojan(Botnet) Trojan loaded successfully. Testing... Terminal linked with 1 system. Awaiting botnet instructions. >>Trojan(Track) Trojan loaded successfully. Testing... Tracking enabled and active. 01647_ Acquired 30 matter. 01648_ Dropped Lrn. Tractor Beam. 01649_ Acquired 10 matter. 01691_ U-05 Engineer destroyed. 01693_ Acquired 10 matter. 01710_ K-01 Serf cleans the Pressure Siphon. 01718_ K-01 Serf cleans the Nuclear Reactor. [Achievement: Achiever] Map ----- +----------------------------------------------------+ | ???????????????# """ """ #????????????????????? | | ???????????????# #???? "??????????????? | | ???????????????# #??? """????????????? | | ???????????????# "" "" #??? """????????????? | | ???????????????# ""S"" #??? ????????????? | | ???????????????# """" #??? """?"??????????? | | ??????? ?????# #??? """ ""?????????? | | ?????? ##########+######### """ """????????? | | ?????? ????????? | | ?????? """ ""?????????? | | ?????? """ """????????? | | ?????? """ """ ???????? | | ?????? = ??????? | | ?????? ##########+"## k """ """????????? | | ??????? ???# # wBB """ """????????? | | ?????????????# """ "" # BB """ """ """????? | | ?????????????# """ """ # ??? | | ???########??# """ R" + ??? | | ???# #??# """ #u ##############????? | | ???# "" #??# ]! "" # #?????????????????? | | ???# "" #??# ]! ! # #?????????????????? | | ???# """ #??# # #?????????????????? | | ???#! """ #######+######## #?????????????????? | | ???# """ # #?????????????????? | | ???# + #?????????????????? | | ???# # @ k +?????????????????? | | ???# ########### """" #?????????????????? | | ???#! " " #?????????# """" #?????????????????? | | ???# "G" #?????????# """" #?????????????????? | | ???#! " #?????????# #?????????????????? | | ???# #?????????#Y """" #?????????????????? | | ???########??######## """"k #?????????????????? | | ?????????????# ! ## """" #?????????????????? | | ??????######## ## #?????????????????? | | ??????# + #?????????????????? | | ??????# "" # ###+### #?????????????????? | | ??????# """# #? ?# #?????????????????? | | ??????# R"## ####? % ?# #?????????????????? | | ??????# """## #???# # #?????????????????? | | ??????# ## #???#]]! # +?????????????????? | | ??????######### #???#]!! # #?????????????????? | | ??????????????# #???#]! # #?????????????????? | | ??????????????# #???# !# #?????????????????? | | #############?# #???###### #?????????????????? | | #?# #????????# #?????????????????? | | ### ##???????# #?????????????????? | | /]] ## #???????# #?????????????????? | | /]] ##== #???????# #?????????????????? | | ]]] ##!%!#???????# #?????????????????? | | ###*##???????? #?????????????????? | +----------------------------------------------------+ Best States ------------- Heat Dissipation 59 Energy Generation 31 Energy Capacity 440 Matter Stores 400 Matter Capacity 400 Sight Range 17 Robot Scan Range 4 Terrain Scan Range 16 Terrain Scan Density 10 Armor Coverage 225 Resistance: KI 20 Resistance: TH 15 Resistance: EX 10 Weapon Cycling 15 Evasion (%) 76 Targeting Accuracy 5 Recoil Reduction 1 Item Schematics ----------------- Hardlight Generator | -6/Factory | Extracted Imp. Hardlight Generator | -6/Factory | Extracted Fusion Compressor | -6/Factory | Extracted Titanium Leg | -6/Factory | Extracted Core Analyzer | -6/Factory | Extracted Hvy. Ion Cannon | -6/Factory | Extracted Armor Integrity Analyzer | -6/Factory | Extracted Imp. Field Recycling Unit | -6/Factory | Extracted Com. Wheel | -6/Factory | Extracted Drone Bay | -6/Factory | Extracted Xenon Bombardment Thruster | -6/Factory | Extracted Weapon Cycler | -6/Factory | Extracted Robot Schematics ------------------ None Fabricated ------------ Nothing Alien Tech Used ----------------- None Achievements -------------- A New Friend Achiever Brute Force Can't Catch Me Party Time Ride The Lightning Challenges ------------ None RPGLIKE | -11 -10 -9 -8 -7 -6 --------- Run | Scr Mat Mat Mat Fac Fac Levels Raised 8 | . . 2 2 1 3 XP Earned 15753 | 3000 35 4241 2100 2386 3991 XP Spent 14955 | 2950 . 3030 2995 1330 4650 Upgrades 46 | 14 . 11 9 4 8 Power Slot 1 | 1 . . . . . Propulsion Slot 2 | 1 . . . . 1 Utility Slot 4 | 1 . . . . 3 Weapon Slot 1 | 1 . . . . . Core Integrity 8 | 6 . 2 . . . Heat Dissipation 5 | . . . 4 1 . Energy Storage 2 | . . . . . 2 Matter Storage 2 | . . . 2 . . Mass Support 5 | 2 . . . 3 . Inventory Capacity 4 | 1 . . 3 . . Sight Range 1 | 1 . . . . . Sensor Range 2 | . . . . . 2 Ranged Accuracy 1 | . . 1 . . . KI Resistance % 3 | . . 3 . . . TH Resistance % 3 | . . 3 . . . EX Resistance % 2 | . . 2 . . . Protomatter Created 607 | . . 406 . 175 26 Integrity Restored 1888 | . . 1066 . 318 504 Core 1788 | . . 966 . 318 504 Parts 100 | . . 100 . . . Protomatter Decayed 45 | . . 45 . . . Game ------ Seed BattleSignalCutter Manual? 0 Play Time 00:57:38 Cumulative 39.4 hours Start 2020.01.03 @ 12:46:12 End 2020.01.04 @ 00:34:48 Sessions 5 Manual Loads 0 Difficulty Rogue Special Mode Winter2019/RPGLIKE Game No. 58 Rogue 58 Adventurer 0 Explorer 0 Win Type - Total 0 Types 0/0/0/0/0/0/0 Lore% 25 Gallery% 36 Achievement% 26 Wizard Run 0 Options --------- ASCII 0 Keyboard 0 Movement Mouse Keybinds 0 Fullscreen 1 Font 18/X11 Map View 76x50 Tactical HUD 1 Map Filters NONE Filters NONE Steam 1 RUN: f56e7fbb-e887-4aa8-aa97-6d3874608ce9